[Event "Early-Titled-Tuesday-Blitz-October-10-2023"]
[Site "Chess.com"]
[Date "2023.10.10"]
[Round "4"]
[White "c63_amg"]
[Black "JSlaby"]
[Result "1/2-1/2"]
[WhiteElo "2802"]
[BlackElo "2581"]
[TimeControl "180+1"]
[EndTime "8:36:47 PDT"]
[Termination "Game drawn by agreement"]

1. e4 {[%clk 0:02:53.8]} 1... c5 {[%clk 0:02:56.1]} 2. Nf3 {[%clk 0:02:49.1]}
2... d6 {[%clk 0:02:54.7]} 3. d4 {[%clk 0:02:46.2]} 3... cxd4 {[%clk 0:02:54.7]}
4. Qxd4 {[%clk 0:02:47.1]} 4... Nc6 {[%clk 0:02:54.1]} 5. Bb5 {[%clk 0:02:47.7]}
5... Qa5+ {[%clk 0:02:53.9]} 6. Nc3 {[%clk 0:02:47]} 6... Qxb5 {[%clk
0:02:54.2]} 7. Nxb5 {[%clk 0:02:47.8]} 7... Nxd4 {[%clk 0:02:54.5]} 8. Nfxd4
{[%clk 0:02:48.7]} 8... Kd8 {[%clk 0:02:54.7]} 9. f3 {[%clk 0:02:48.1]} 9... Bd7
{[%clk 0:02:53.3]} 10. c4 {[%clk 0:02:21.7]} 10... e5 {[%clk 0:02:51.4]} 11. Nf5
{[%clk 0:02:08.4]} 11... Bxb5 {[%clk 0:02:49.2]} 12. cxb5 {[%clk 0:02:08.4]}
12... Kd7 {[%clk 0:02:37.2]} 13. O-O {[%clk 0:02:03.1]} 13... Rc8 {[%clk
0:02:36.4]} 14. Rd1 {[%clk 0:01:52.8]} 14... g6 {[%clk 0:02:22.4]} 15. Ne3
{[%clk 0:01:53]} 15... Bh6 {[%clk 0:02:21.6]} 16. Nd5 {[%clk 0:01:49.9]} 16...
Bxc1 {[%clk 0:02:19.2]} 17. Raxc1 {[%clk 0:01:50.8]} 17... Ne7 {[%clk
0:02:17.2]} 18. Nc3 {[%clk 0:01:16.7]} 18... Rc7 {[%clk 0:02:05.4]} 19. Rd2
{[%clk 0:01:14.2]} 19... Ke6 {[%clk 0:02:04.4]} 20. Rcd1 {[%clk 0:01:13.9]}
20... Rd8 {[%clk 0:02:04.4]} 21. Kf2 {[%clk 0:01:11.2]} 21... f5 {[%clk
0:02:04.4]} 22. h4 {[%clk 0:00:55.1]} 22... Rc5 {[%clk 0:02:03.3]} 23. h5 {[%clk
0:00:49.6]} 23... d5 {[%clk 0:02:02.9]} 24. hxg6 {[%clk 0:00:48.7]} 24... hxg6
{[%clk 0:02:02.4]} 25. exd5+ {[%clk 0:00:44.4]} 25... Nxd5 {[%clk 0:02:03.3]}
26. a4 {[%clk 0:00:19.6]} 26... Nxc3 {[%clk 0:02:02.4]} 27. Rxd8 {[%clk
0:00:20.2]} 27... Nxd1+ {[%clk 0:02:02.6]} 28. Rxd1 {[%clk 0:00:21]} 28... Rc2+
{[%clk 0:02:02.4]} 29. Kg3 {[%clk 0:00:21.4]} 29... Rxb2 {[%clk 0:01:59.1]} 30.
Rd8 {[%clk 0:00:21.9]} 30... Rb4 {[%clk 0:01:57.5]} 31. Ra8 {[%clk 0:00:19.4]}
31... Rxa4 {[%clk 0:01:56.3]} 32. b6 {[%clk 0:00:20.1]} 32... a5 {[%clk
0:01:47.7]} 33. Ra7 {[%clk 0:00:19.5]} 33... Kf6 {[%clk 0:01:40.3]} 34. Rxb7
{[%clk 0:00:19.5]} 34... Rb4 {[%clk 0:01:40.1]} 35. Rb8 {[%clk 0:00:19.1]} 35...
Kg5 {[%clk 0:01:39.9]} 36. Ra8 {[%clk 0:00:17.3]} 36... Rxb6 {[%clk 0:01:38]}
37. Rxa5 {[%clk 0:00:17.9]} 37... f4+ {[%clk 0:01:30.4]} 38. Kh3 {[%clk
0:00:17.8]} 38... Kf5 {[%clk 0:01:30.7]} 39. Kh2 {[%clk 0:00:17.9]} 39... g5
{[%clk 0:01:30]} 40. Ra8 {[%clk 0:00:18.1]} 40... Rh6+ {[%clk 0:01:24.1]} 41.
Kg1 {[%clk 0:00:17.9]} 41... g4 {[%clk 0:01:21.7]} 42. Rf8+ {[%clk 0:00:16.4]}
42... Rf6 {[%clk 0:01:21.8]} 43. fxg4+ {[%clk 0:00:15.7]} 43... Kg5 {[%clk
0:01:22.2]} 44. Re8 {[%clk 0:00:15.9]} 1/2-1/2

[Event "Early-Titled-Tuesday-Blitz-October-10-2023"]
[Site "Chess.com"]
[Date "2023.10.10"]
[Round "4"]
[White "unclear15"]
[Black "DonCiao"]
[Result "1-0"]
[WhiteElo "2435"]
[BlackElo "2063"]
[TimeControl "180+1"]
[EndTime "8:36:48 PDT"]
[Termination "unclear15 won by checkmate"]

1. b3 {[%clk 0:03:00.9]} 1... e5 {[%clk 0:02:56.7]} 2. Bb2 {[%clk 0:03:01.8]}
2... Nc6 {[%clk 0:02:55.2]} 3. e3 {[%clk 0:02:59.1]} 3... Nf6 {[%clk 0:02:54.9]}
4. Nf3 {[%clk 0:02:59.2]} 4... Bd6 {[%clk 0:02:54.5]} 5. c4 {[%clk 0:02:56.9]}
5... e4 {[%clk 0:02:33.5]} 6. Nd4 {[%clk 0:02:55.1]} 6... Nxd4 {[%clk
0:02:28.4]} 7. Bxd4 {[%clk 0:02:56]} 7... O-O {[%clk 0:02:27.9]} 8. Nc3 {[%clk
0:02:48.7]} 8... c6 {[%clk 0:02:17.1]} 9. Bxf6 {[%clk 0:02:45.9]} 9... Qxf6
{[%clk 0:02:14.8]} 10. Nxe4 {[%clk 0:02:46.5]} 10... Qe7 {[%clk 0:02:09.8]} 11.
Nxd6 {[%clk 0:02:46.3]} 11... Qxd6 {[%clk 0:02:10.2]} 12. Be2 {[%clk 0:02:44.9]}
12... Qg6 {[%clk 0:02:09]} 13. O-O {[%clk 0:02:44.2]} 13... d5 {[%clk
0:02:08.7]} 14. d4 {[%clk 0:02:37.8]} 14... Re8 {[%clk 0:02:06.3]} 15. Bf3
{[%clk 0:02:37.2]} 15... Be6 {[%clk 0:02:00.9]} 16. Rc1 {[%clk 0:02:34.4]} 16...
dxc4 {[%clk 0:01:59.2]} 17. bxc4 {[%clk 0:02:33.4]} 17... Bf5 {[%clk 0:01:59]}
18. d5 {[%clk 0:02:30.8]} 18... Rad8 {[%clk 0:01:43.2]} 19. Qb3 {[%clk
0:02:23.7]} 19... cxd5 {[%clk 0:00:59.6]} 20. cxd5 {[%clk 0:02:22.5]} 20... Rd7
{[%clk 0:00:56.8]} 21. Rfd1 {[%clk 0:02:19.8]} 21... h5 {[%clk 0:00:53.1]} 22.
Qa3 {[%clk 0:02:10.2]} 22... a6 {[%clk 0:00:48.9]} 23. d6 {[%clk 0:02:09.6]}
23... Be4 {[%clk 0:00:37.5]} 24. Bxe4 {[%clk 0:02:04.9]} 24... Qxe4 {[%clk
0:00:36.9]} 25. Rc7 {[%clk 0:02:02.3]} 25... Red8 {[%clk 0:00:34.9]} 26. Rxd7
{[%clk 0:02:01.7]} 26... Rxd7 {[%clk 0:00:34.8]} 27. Qc5 {[%clk 0:02:02.1]}
27... Qe6 {[%clk 0:00:33.2]} 28. e4 {[%clk 0:01:55.1]} 28... g6 {[%clk
0:00:27.1]} 29. e5 {[%clk 0:01:52.7]} 29... Kg7 {[%clk 0:00:25.7]} 30. h3 {[%clk
0:01:50.8]} 30... Qxa2 {[%clk 0:00:21.7]} 31. Qd4 {[%clk 0:01:43.4]} 31... Qe6
{[%clk 0:00:20.6]} 32. Rd3 {[%clk 0:01:41.7]} 32... b5 {[%clk 0:00:15]} 33. Rf3
{[%clk 0:01:40.6]} 33... Rd8 {[%clk 0:00:11.9]} 34. Rf6 {[%clk 0:01:40.1]} 34...
Qd7 {[%clk 0:00:11.4]} 35. e6 {[%clk 0:01:37.7]} 35... Qxd6 {[%clk 0:00:08.2]}
36. Rxf7+ {[%clk 0:01:36.9]} 36... Kh6 {[%clk 0:00:07.9]} 37. Qg7+ {[%clk
0:01:35.6]} 37... Kg5 {[%clk 0:00:07.9]} 38. f4+ {[%clk 0:01:32.4]} 38... Kh4
{[%clk 0:00:05.5]} 39. Qf6+ {[%clk 0:01:32.4]} 39... Kg3 {[%clk 0:00:05.1]} 40.
Qg5# {[%clk 0:01:33.3]} 1-0

[Event "Early-Titled-Tuesday-Blitz-October-10-2023"]
[Site "Chess.com"]
[Date "2023.10.10"]
[Round "4"]
[White "GMMatamoros"]
[Black "MdChess1734"]
[Result "1-0"]
[WhiteElo "2574"]
[BlackElo "2383"]
[TimeControl "180+1"]
[EndTime "8:36:49 PDT"]
[Termination "GMMatamoros won on time"]

1. c4 {[%clk 0:03:00.9]} 1... e5 {[%clk 0:02:59]} 2. Nc3 {[%clk 0:02:55.4]} 2...
Nf6 {[%clk 0:02:59.4]} 3. e3 {[%clk 0:02:55]} 3... Nc6 {[%clk 0:02:56]} 4. g4
{[%clk 0:02:54.5]} 4... Bb4 {[%clk 0:02:48.6]} 5. g5 {[%clk 0:02:50.4]} 5... Ng8
{[%clk 0:02:34.8]} 6. Nd5 {[%clk 0:02:49]} 6... Bd6 {[%clk 0:02:26.3]} 7. h4
{[%clk 0:02:45.4]} 7... h6 {[%clk 0:02:26.2]} 8. Nh3 {[%clk 0:02:33.4]} 8...
hxg5 {[%clk 0:02:21.4]} 9. Nxg5 {[%clk 0:02:11.3]} 9... Nf6 {[%clk 0:02:20.7]}
10. Qf3 {[%clk 0:02:08.4]} 10... Nb4 {[%clk 0:02:15.3]} 11. Nxb4 {[%clk
0:02:03.6]} 11... Bxb4 {[%clk 0:02:15.5]} 12. a3 {[%clk 0:02:03.3]} 12... Be7
{[%clk 0:01:56.4]} 13. b4 {[%clk 0:01:51.4]} 13... a5 {[%clk 0:01:17.6]} 14. b5
{[%clk 0:01:47.7]} 14... d5 {[%clk 0:01:11.3]} 15. Bb2 {[%clk 0:01:46.9]} 15...
d4 {[%clk 0:00:17.8]} 16. exd4 {[%clk 0:01:39.6]} 16... exd4 {[%clk 0:00:16.7]}
17. Qf4 {[%clk 0:01:39.9]} 17... Bc5 {[%clk 0:00:11.6]} 18. Bg2 {[%clk
0:01:38.6]} 18... Qe7+ {[%clk 0:00:09.9]} 19. Kf1 {[%clk 0:01:31.2]} 19... O-O
{[%clk 0:00:09.7]} 20. h5 {[%clk 0:01:24.3]} 20... Qd6 {[%clk 0:00:05.9]} 21.
Qh4 {[%clk 0:01:17.4]} 21... Ng4 {[%clk 0:00:04.1]} 22. h6 {[%clk 0:01:00.8]}
22... Nxh6 {[%clk 0:00:01.5]} 23. Ne4 {[%clk 0:01:00.3]} 23... Qe5 {[%clk
0:00:01.8]} 24. Nxc5 {[%clk 0:00:58.2]} 24... Qxc5 {[%clk 0:00:01.3]} 25. Bxd4
{[%clk 0:00:57.9]} 1-0

[Event "Early-Titled-Tuesday-Blitz-October-10-2023"]
[Site "Chess.com"]
[Date "2023.10.10"]
[Round "4"]
[White "Legendinunknown"]
[Black "mishanick"]
[Result "0-1"]
[WhiteElo "2824"]
[BlackElo "3080"]
[TimeControl "180+1"]
[EndTime "8:36:50 PDT"]
[Termination "mishanick won by checkmate"]

1. d4 {[%clk 0:03:00.9]} 1... Nf6 {[%clk 0:03:00.1]} 2. c4 {[%clk 0:03:00.6]}
2... e6 {[%clk 0:03:00.7]} 3. Nc3 {[%clk 0:03:00.1]} 3... d5 {[%clk 0:03:00.4]}
4. cxd5 {[%clk 0:02:58.5]} 4... exd5 {[%clk 0:03:01.3]} 5. Bg5 {[%clk
0:02:57.7]} 5... Bb4 {[%clk 0:03:01.1]} 6. e3 {[%clk 0:02:54.5]} 6... h6 {[%clk
0:03:01]} 7. Bxf6 {[%clk 0:02:54.1]} 7... Qxf6 {[%clk 0:03:00.2]} 8. Qa4+ {[%clk
0:02:54.1]} 8... Nc6 {[%clk 0:03:00.8]} 9. Bb5 {[%clk 0:02:53.8]} 9... Bd7
{[%clk 0:02:50.6]} 10. Ne2 {[%clk 0:02:49]} 10... Qd6 {[%clk 0:02:45.7]} 11. a3
{[%clk 0:02:45.7]} 11... Bxc3+ {[%clk 0:02:45.1]} 12. Nxc3 {[%clk 0:02:46.3]}
12... Ne7 {[%clk 0:02:40.8]} 13. Bxd7+ {[%clk 0:02:45.3]} 13... Qxd7 {[%clk
0:02:41]} 14. Qxd7+ {[%clk 0:02:43.1]} 14... Kxd7 {[%clk 0:02:41.9]} 15. Kd2
{[%clk 0:02:40]} 15... c6 {[%clk 0:02:41.7]} 16. b4 {[%clk 0:02:37.5]} 16... Nf5
{[%clk 0:02:41.6]} 17. b5 {[%clk 0:02:35.4]} 17... Nd6 {[%clk 0:02:39.2]} 18.
bxc6+ {[%clk 0:02:34.8]} 18... bxc6 {[%clk 0:02:39.4]} 19. Rhb1 {[%clk
0:02:35.2]} 19... Rhb8 {[%clk 0:02:34.4]} 20. Kd3 {[%clk 0:02:34.1]} 20... Nc4
{[%clk 0:02:25.6]} 21. Na4 {[%clk 0:02:32.5]} 21... Kc7 {[%clk 0:02:25.4]} 22.
Nc5 {[%clk 0:02:30.5]} 22... Rb6 {[%clk 0:02:23.9]} 23. Kc3 {[%clk 0:02:23.2]}
23... Rab8 {[%clk 0:02:10.3]} 24. Rb4 {[%clk 0:02:17.4]} 24... a5 {[%clk
0:01:56.5]} 25. Rxb6 {[%clk 0:02:12]} 25... Rxb6 {[%clk 0:01:57.4]} 26. Na4
{[%clk 0:02:10.6]} 26... Rb5 {[%clk 0:01:57]} 27. e4 {[%clk 0:02:07.9]} 27...
Nd6 {[%clk 0:01:55.2]} 28. exd5 {[%clk 0:02:04.6]} 28... Rxd5 {[%clk 0:01:25.6]}
29. Re1 {[%clk 0:01:48.5]} 29... Nb5+ {[%clk 0:01:25.1]} 30. Kb3 {[%clk
0:01:45.6]} 30... Nxd4+ {[%clk 0:01:24.5]} 31. Kc4 {[%clk 0:01:45.4]} 31... Ne6
{[%clk 0:01:24.6]} 32. Nc3 {[%clk 0:01:43.7]} 32... Rd4+ {[%clk 0:01:24.5]} 33.
Kb3 {[%clk 0:01:43.8]} 33... Rd2 {[%clk 0:01:25.1]} 34. f4 {[%clk 0:01:41]}
34... Rxg2 {[%clk 0:01:19.2]} 35. f5 {[%clk 0:01:23.8]} 35... Nd4+ {[%clk
0:01:19.2]} 36. Ka4 {[%clk 0:01:24.4]} 36... Nxf5 {[%clk 0:01:19.1]} 37. Kxa5
{[%clk 0:01:23.3]} 37... Rg4 {[%clk 0:01:15.8]} 38. Re5 {[%clk 0:01:20.2]} 38...
g6 {[%clk 0:01:14.2]} 39. Ne4 {[%clk 0:01:17.6]} 39... Rh4 {[%clk 0:01:10.3]}
40. Ka6 {[%clk 0:01:13.4]} 40... Rxh2 {[%clk 0:01:07.7]} 41. a4 {[%clk
0:01:13.7]} 41... Re2 {[%clk 0:01:07.5]} 42. a5 {[%clk 0:01:11.7]} 42... h5
{[%clk 0:01:08]} 43. Ka7 {[%clk 0:01:10.7]} 43... h4 {[%clk 0:01:08.6]} 44. Re8
{[%clk 0:01:04.5]} 44... h3 {[%clk 0:01:07.9]} 45. a6 {[%clk 0:01:03.1]} 45...
h2 {[%clk 0:01:07.4]} 46. Rh8 {[%clk 0:01:03.2]} 46... Rxe4 {[%clk 0:01:07.4]}
47. Rxh2 {[%clk 0:01:03.9]} 47... Ra4 {[%clk 0:01:07.9]} 48. Rh8 {[%clk
0:01:00.2]} 48... Nd6 {[%clk 0:01:08.4]} 49. Rb8 {[%clk 0:00:56.6]} 49... Nb5+
{[%clk 0:01:08.3]} 50. Rxb5 {[%clk 0:00:57.2]} 50... cxb5 {[%clk 0:01:09.2]} 51.
Ka8 {[%clk 0:00:57]} 51... Rxa6# {[%clk 0:01:10.1]} 0-1

[Event "Early-Titled-Tuesday-Blitz-October-10-2023"]
[Site "Chess.com"]
[Date "2023.10.10"]
[Round "4"]
[White "Rodalquilar"]
[Black "Zhigalko_Sergei"]
[Result "1-0"]
[WhiteElo "2753"]
[BlackElo "2935"]
[TimeControl "180+1"]
[EndTime "8:36:54 PDT"]
[Termination "Rodalquilar won on time"]

1. d4 {[%clk 0:03:00.9]} 1... Nf6 {[%clk 0:02:58.6]} 2. Nf3 {[%clk 0:03:01.2]}
2... e6 {[%clk 0:02:58.1]} 3. Bf4 {[%clk 0:03:01.5]} 3... d5 {[%clk 0:02:53.6]}
4. e3 {[%clk 0:03:01.8]} 4... Bd6 {[%clk 0:02:53.7]} 5. Nbd2 {[%clk 0:03:02.3]}
5... Bxf4 {[%clk 0:02:51.6]} 6. exf4 {[%clk 0:03:03.2]} 6... O-O {[%clk
0:02:52.3]} 7. c3 {[%clk 0:03:01.5]} 7... b6 {[%clk 0:02:52.6]} 8. h4 {[%clk
0:03:01.3]} 8... c5 {[%clk 0:02:49.4]} 9. h5 {[%clk 0:03:01.2]} 9... Ba6 {[%clk
0:02:29.6]} 10. Bxa6 {[%clk 0:02:58.3]} 10... Nxa6 {[%clk 0:02:30.5]} 11. h6
{[%clk 0:02:58.7]} 11... g6 {[%clk 0:02:30.7]} 12. Qe2 {[%clk 0:02:57.3]} 12...
Nb8 {[%clk 0:02:30.4]} 13. Ne5 {[%clk 0:02:57.1]} 13... Qc7 {[%clk 0:02:26.4]}
14. O-O {[%clk 0:02:55.9]} 14... Nc6 {[%clk 0:02:25.9]} 15. Ndf3 {[%clk
0:02:55.2]} 15... Ne7 {[%clk 0:02:18.1]} 16. g4 {[%clk 0:02:35.4]} 16... Ne4
{[%clk 0:02:05.6]} 17. Ng5 {[%clk 0:02:33.8]} 17... Nxg5 {[%clk 0:01:14.5]} 18.
fxg5 {[%clk 0:02:34]} 18... f6 {[%clk 0:00:53.5]} 19. gxf6 {[%clk 0:02:26.9]}
19... Rxf6 {[%clk 0:00:52.7]} 20. f4 {[%clk 0:02:24.8]} 20... Raf8 {[%clk
0:00:51.4]} 21. Qe3 {[%clk 0:02:19.8]} 21... Nc6 {[%clk 0:00:43.7]} 22. Rae1
{[%clk 0:02:12]} 22... Nxe5 {[%clk 0:00:34.4]} 23. fxe5 {[%clk 0:01:52.9]} 23...
R6f7 {[%clk 0:00:24.9]} 24. Kg2 {[%clk 0:00:56.3]} 24... cxd4 {[%clk 0:00:23.4]}
25. cxd4 {[%clk 0:00:56.7]} 25... Qc2+ {[%clk 0:00:12.3]} 26. Re2 {[%clk
0:00:56.6]} 26... Qd1 {[%clk 0:00:08.6]} 27. Rxd1 {[%clk 0:00:55.1]} 1-0

[Event "Early-Titled-Tuesday-Blitz-October-10-2023"]
[Site "Chess.com"]
[Date "2023.10.10"]
[Round "4"]
[White "chesselephant"]
[Black "Druid24"]
[Result "0-1"]
[WhiteElo "2521"]
[BlackElo "2713"]
[TimeControl "180+1"]
[EndTime "8:36:54 PDT"]
[Termination "Druid24 won by resignation"]

1. d4 {[%clk 0:03:00.9]} 1... Nf6 {[%clk 0:02:59.6]} 2. c4 {[%clk 0:03:01]} 2...
e6 {[%clk 0:03:00.2]} 3. Nc3 {[%clk 0:03:01.3]} 3... Bb4 {[%clk 0:03:00.4]} 4.
e3 {[%clk 0:03:01.6]} 4... O-O {[%clk 0:03:00.1]} 5. Bd3 {[%clk 0:03:01.9]} 5...
Re8 {[%clk 0:03:00.1]} 6. Nf3 {[%clk 0:03:00.1]} 6... Bxc3+ {[%clk 0:02:59]} 7.
bxc3 {[%clk 0:03:00.2]} 7... d6 {[%clk 0:02:59.6]} 8. O-O {[%clk 0:02:56.2]}
8... e5 {[%clk 0:02:59.7]} 9. Nd2 {[%clk 0:02:54.1]} 9... e4 {[%clk 0:02:59.4]}
10. Bc2 {[%clk 0:02:52.7]} 10... Bf5 {[%clk 0:02:57.3]} 11. Rb1 {[%clk 0:02:42]}
11... b6 {[%clk 0:02:56.3]} 12. h3 {[%clk 0:02:18.5]} 12... Nbd7 {[%clk
0:02:51.6]} 13. f4 {[%clk 0:02:12.7]} 13... h5 {[%clk 0:02:49.4]} 14. Qe1 {[%clk
0:02:04.1]} 14... g6 {[%clk 0:02:48.1]} 15. Qf2 {[%clk 0:01:56.1]} 15... Kg7
{[%clk 0:02:47.3]} 16. Kh2 {[%clk 0:01:53.1]} 16... Qe7 {[%clk 0:02:47]} 17. Re1
{[%clk 0:01:52.4]} 17... Rh8 {[%clk 0:02:46.3]} 18. Ba3 {[%clk 0:01:28]} 18...
Rh7 {[%clk 0:02:44.2]} 19. Ba4 {[%clk 0:01:24.9]} 19... Rah8 {[%clk 0:02:33.6]}
20. Kg1 {[%clk 0:01:16.8]} 20... Ng4 {[%clk 0:02:23.5]} 21. Qe2 {[%clk 0:01:10]}
21... Qh4 {[%clk 0:02:14.5]} 22. Nf1 {[%clk 0:00:54.5]} 22... Ndf6 {[%clk
0:02:12]} 23. c5 {[%clk 0:00:44.2]} 23... d5 {[%clk 0:02:05.7]} 24. cxb6 {[%clk
0:00:43.7]} 24... axb6 {[%clk 0:02:06.6]} 25. Be7 {[%clk 0:00:43.9]} 25... Nh6
{[%clk 0:01:46.9]} 26. Bc6 {[%clk 0:00:41.2]} 26... Be6 {[%clk 0:01:44.6]} 27.
Qf2 {[%clk 0:00:35.7]} 27... Qxf2+ {[%clk 0:01:43]} 28. Kxf2 {[%clk 0:00:36.6]}
28... Nf5 {[%clk 0:01:43.3]} 29. Bb4 {[%clk 0:00:33.5]} 29... h4 {[%clk
0:01:42.3]} 30. a4 {[%clk 0:00:32.2]} 30... Bd7 {[%clk 0:01:39.5]} 31. Bxd7
{[%clk 0:00:31.3]} 31... Nxd7 {[%clk 0:01:40.4]} 32. a5 {[%clk 0:00:31.1]} 32...
Ra8 {[%clk 0:01:31.8]} 33. Ra1 {[%clk 0:00:31.3]} 33... c5 {[%clk 0:01:27.7]}
34. dxc5 {[%clk 0:00:20.5]} 34... bxc5 {[%clk 0:01:28.6]} 35. Ba3 {[%clk
0:00:20]} 35... Rxa5 {[%clk 0:01:28.6]} 36. Bb2 {[%clk 0:00:20.4]} 36... Rb5
{[%clk 0:01:24.9]} 37. Reb1 {[%clk 0:00:20.7]} 37... c4 {[%clk 0:01:19]} 38. Ba3
{[%clk 0:00:18.5]} 38... Rxb1 {[%clk 0:01:15.6]} 39. Rxb1 {[%clk 0:00:19.4]}
39... Rh8 {[%clk 0:01:15.7]} 40. Rb7 {[%clk 0:00:19.5]} 40... Nf6 {[%clk
0:01:11.9]} 41. Nd2 {[%clk 0:00:18.2]} 41... Ra8 {[%clk 0:01:10.5]} 42. Ke2
{[%clk 0:00:17.8]} 0-1

[Event "Early-Titled-Tuesday-Blitz-October-10-2023"]
[Site "Chess.com"]
[Date "2023.10.10"]
[Round "4"]
[White "Cambek64"]
[Black "Dannyyi"]
[Result "0-1"]
[WhiteElo "2424"]
[BlackElo "2209"]
[TimeControl "180+1"]
[EndTime "8:36:54 PDT"]
[Termination "Dannyyi won by checkmate"]

1. e4 {[%clk 0:02:53.9]} 1... c5 {[%clk 0:02:59.5]} 2. Nc3 {[%clk 0:02:53.2]}
2... d6 {[%clk 0:02:56.2]} 3. d4 {[%clk 0:02:50.5]} 3... cxd4 {[%clk 0:02:55.6]}
4. Qxd4 {[%clk 0:02:51.4]} 4... Nc6 {[%clk 0:02:55.4]} 5. Qd2 {[%clk 0:02:52.1]}
5... g6 {[%clk 0:02:55.8]} 6. b3 {[%clk 0:02:52]} 6... Bh6 {[%clk 0:02:55.8]} 7.
Bb2 {[%clk 0:02:52.7]} 7... Bxd2+ {[%clk 0:02:55.1]} 8. Kxd2 {[%clk 0:02:52.7]}
8... Nf6 {[%clk 0:02:54.5]} 9. Rd1 {[%clk 0:02:48.4]} 9... O-O {[%clk
0:02:51.6]} 10. Kc1 {[%clk 0:02:49]} 10... a6 {[%clk 0:02:49.8]} 11. Kb1 {[%clk
0:02:48.6]} 11... b5 {[%clk 0:02:48.7]} 12. f3 {[%clk 0:02:48.8]} 12... Be6
{[%clk 0:02:43.8]} 13. g4 {[%clk 0:02:49]} 13... b4 {[%clk 0:02:38.1]} 14. Nce2
{[%clk 0:02:46.8]} 14... a5 {[%clk 0:02:37.9]} 15. h4 {[%clk 0:02:44.8]} 15...
h5 {[%clk 0:02:36.6]} 16. Nf4 {[%clk 0:02:40.5]} 16... Ne5 {[%clk 0:02:27]} 17.
gxh5 {[%clk 0:02:33.6]} 17... Qb6 {[%clk 0:02:20]} 18. hxg6 {[%clk 0:02:29.9]}
18... Nxg6 {[%clk 0:02:15.8]} 19. Nge2 {[%clk 0:02:17.6]} 19... a4 {[%clk
0:02:04]} 20. h5 {[%clk 0:02:16.2]} 20... Nxf4 {[%clk 0:02:02.4]} 21. Nxf4
{[%clk 0:02:13.5]} 21... axb3 {[%clk 0:02:02.2]} 22. axb3 {[%clk 0:02:08.7]}
22... Qa7 {[%clk 0:02:02.1]} 23. Bd3 {[%clk 0:02:05.1]} 23... Rfc8 {[%clk
0:01:53.1]} 24. h6 {[%clk 0:01:58.9]} 24... Bxb3 {[%clk 0:01:39.8]} 25. h7+
{[%clk 0:01:56]} 25... Nxh7 {[%clk 0:01:35.8]} 26. Rxh7 {[%clk 0:01:49.2]} 26...
Bxc2+ {[%clk 0:01:32.1]} 27. Bxc2 {[%clk 0:01:47.9]} 27... Qa2+ {[%clk
0:01:31.2]} 28. Kc1 {[%clk 0:01:47.8]} 28... Rxc2+ {[%clk 0:01:22.3]} 29. Kxc2
{[%clk 0:01:45.8]} 29... Rc8+ {[%clk 0:01:22.7]} 30. Kd3 {[%clk 0:01:46.5]}
30... Qb3+ {[%clk 0:01:18.8]} 31. Ke2 {[%clk 0:01:38.7]} 31... Qxb2+ {[%clk
0:01:15.7]} 32. Rd2 {[%clk 0:01:36.4]} 32... Qe5 {[%clk 0:01:10.2]} 33. Rh4
{[%clk 0:01:28.5]} 33... Rc3 {[%clk 0:00:50.2]} 34. Rd5 {[%clk 0:01:22.3]} 34...
Rc2+ {[%clk 0:00:47.5]} 35. Ke3 {[%clk 0:01:20.6]} 35... Qc3+ {[%clk 0:00:43.5]}
36. Nd3 {[%clk 0:01:15.7]} 36... Qd2+ {[%clk 0:00:39.4]} 37. Kd4 {[%clk
0:01:14.1]} 37... e5+ {[%clk 0:00:39.2]} 38. Rxe5 {[%clk 0:01:13.5]} 38... dxe5+
{[%clk 0:00:39.1]} 39. Kxe5 {[%clk 0:01:13.6]} 39... Qxd3 {[%clk 0:00:38.7]} 40.
Rg4+ {[%clk 0:01:06.5]} 40... Kf8 {[%clk 0:00:38.6]} 41. Rf4 {[%clk 0:01:05.3]}
41... Rc5+ {[%clk 0:00:37.2]} 42. Kf6 {[%clk 0:01:05]} 42... Qd6# {[%clk
0:00:36.7]} 0-1

[Event "Early-Titled-Tuesday-Blitz-October-10-2023"]
[Site "Chess.com"]
[Date "2023.10.10"]
[Round "4"]
[White "TregubovP"]
[Black "topin8"]
[Result "1-0"]
[WhiteElo "2586"]
[BlackElo "2428"]
[TimeControl "180+1"]
[EndTime "8:36:58 PDT"]
[Termination "TregubovP won on time"]

1. e4 {[%clk 0:03:00.9]} 1... e5 {[%clk 0:02:55.3]} 2. Nf3 {[%clk 0:02:56.5]}
2... Nc6 {[%clk 0:02:55.3]} 3. Bc4 {[%clk 0:02:57]} 3... Nf6 {[%clk 0:02:55.3]}
4. d3 {[%clk 0:02:57.3]} 4... Bc5 {[%clk 0:02:54.7]} 5. Nc3 {[%clk 0:02:57.8]}
5... d6 {[%clk 0:02:52.2]} 6. Na4 {[%clk 0:02:52.5]} 6... Bb6 {[%clk 0:01:51.2]}
7. a3 {[%clk 0:02:52.3]} 7... d5 {[%clk 0:01:44.1]} 8. exd5 {[%clk 0:02:49.2]}
8... Nxd5 {[%clk 0:01:45]} 9. O-O {[%clk 0:02:40.3]} 9... O-O {[%clk 0:01:30.3]}
10. Re1 {[%clk 0:02:33.4]} 10... Re8 {[%clk 0:01:15.7]} 11. Ng5 {[%clk
0:02:17.1]} 11... Be6 {[%clk 0:00:41.1]} 12. Nxe6 {[%clk 0:01:50.7]} 12... Rxe6
{[%clk 0:00:40.2]} 13. Nxb6 {[%clk 0:01:49]} 13... axb6 {[%clk 0:00:38.5]} 14.
Qf3 {[%clk 0:01:42.5]} 14... Nce7 {[%clk 0:00:37.9]} 15. Bg5 {[%clk 0:01:38.5]}
15... f6 {[%clk 0:00:33.9]} 16. Bd2 {[%clk 0:01:37.8]} 16... Rc6 {[%clk
0:00:08]} 17. Bb3 {[%clk 0:01:31.4]} 17... Kh8 {[%clk 0:00:07.6]} 18. g3 {[%clk
0:01:11]} 18... b5 {[%clk 0:00:04.9]} 19. Re4 {[%clk 0:01:01.1]} 19... Nb6
{[%clk 0:00:04.1]} 20. Qh5 {[%clk 0:00:50.9]} 20... Qe8 {[%clk 0:00:02.1]} 21.
Bf7 {[%clk 0:00:38.9]} 21... Qf8 {[%clk 0:00:02.6]} 22. Qxh7+ {[%clk 0:00:37.9]}
1-0